fUSD/lending_fUSD_20240611
["ID","MTS","AMOUNT","RATE_DAILY","PERIOD"]
[329038409,1718070641312,-515.72769748,0.00029041,4]
[329038411,1718070641323,-503.19712974,0.00029041,4]
[329038413,1718070641334,-500.0,0.00029041,4]
[329038415,1718070641345,-500.0,0.00029041,4]
[329038417,1718070641355,-500.0,0.00029041,4]
[329038419,1718070641366,-500.0,0.00029041,4]
[329038422,1718070641377,-510.91043815,0.00029041,4]
[329038424,1718070641387,-500.0,0.00029041,4]
[329038426,1718070641398,-315.24769094,0.00029041,4]
[329038430,1718070641432,-184.75230906,0.00029041,4]
[329038432,1718070641443,-500.0,0.00029041,4]
[329038434,1718070641455,-500.0,0.00029041,4]
[329038436,1718070641466,-505.24001453,0.00029041,4]
[329038438,1718070641476,-500.0,0.00029041,4]
[329038440,1718070641487,-500.0,0.00029041,4]
[329038442,1718070641498,-500.0,0.00029041,4]
[329038444,1718070641510,-500.0,0.00029041,4]
[329038446,1718070641520,-500.0,0.00029041,4]
[329038448,1718070641530,-284.44341165,0.00029041,4]
[329038451,1718070641550,-232.53505576,0.00029041,4]
[329038453,1718070641561,-291.64760363,0.00029041,4]
[329038456,1718070641574,-208.35239637,0.00029041,4]
[329038458,1718070641584,-121.91700453,0.00029041,4]
[329038460,1718070641598,-398.66314152,0.00029041,4]
[329038462,1718070641609,-500.0,0.00029041,4]
[329038464,1718070641619,-500.0,0.00029041,4]
[329038466,1718070641631,-500.0,0.00029041,4]
[329038468,1718070641641,-547.47644967,0.00029041,4]
[329038471,1718070641652,-500.0,0.00029041,4]
[329038472,1718070641662,-500.0,0.00029041,4]
[329038474,1718070641672,-500.0,0.00029041,4]
[329038476,1718070641683,-500.0,0.00029041,4]
[329038479,1718070641693,-500.0,0.00029041,4]
[329038481,1718070641704,-500.0,0.00029041,4]
[329038483,1718070641715,-210.34101425,0.00029041,4]
[329038485,1718070641726,-617.06506649,0.00029041,4]
[329038487,1718070641737,-500.0,0.00029041,4]
[329038489,1718070641748,-500.0,0.00029041,4]
[329038491,1718070641759,-500.0,0.00029041,4]
[329038493,1718070641772,-166.58512906,0.00029041,4]
[329038495,1718070641784,-500.0,0.00029041,4]
[329038497,1718070641794,-516.62033545,0.00029041,4]
[329038499,1718070641804,-505.42816956,0.00029041,4]
[329038501,1718070641815,-530.93550911,0.00029041,4]
[329038503,1718070641826,-500.0,0.00029041,4]
[329038505,1718070641837,-500.0,0.00029041,4]
[329038508,1718070641847,-500.0,0.00029041,4]
[329038510,1718070641858,-500.0,0.00029041,4]
[329038512,1718070641869,-500.0,0.00029041,4]
[329038514,1718070641880,-516.17415638,0.00029041,4]
[329038516,1718070641890,-500.0,0.00029041,4]
[329038518,1718070641901,-222.50308039,0.00029041,4]
[329038520,1718070641911,-510.30353376,0.00029041,4]
[329038522,1718070641923,-510.36361422,0.00029041,4]
[329038524,1718070641933,-500.0,0.00029041,4]
[329038525,1718070641943,-500.0,0.00029041,4]
[329038526,1718070641954,-500.0,0.00029041,4]
[329038527,1718070641966,-500.0,0.00029041,4]
[329038528,1718070641976,-521.04318719,0.00029041,4]
[329038529,1718070641987,-521.16418133,0.00029041,4]
[329038530,1718070641998,-500.0,0.00029041,4]
[329038531,1718070642008,-500.0,0.00029041,4]
[329038532,1718070642018,-519.6090528,0.00029041,4]
[329038533,1718070642029,-253.20893175,0.00029041,4]
[329038534,1718070642039,-500.0,0.00029041,4]
[329038535,1718070642051,-166.65100666,0.00029041,4]
[329038537,1718070642061,-500.0,0.00029041,4]
[329038539,1718070642072,-505.1069239,0.00029041,4]
[329038541,1718070642084,-501.30638336,0.00029041,4]
[329038543,1718070642094,-516.61481258,0.00029041,4]
[329038545,1718070642104,-574.78844243,0.00029041,4]
[329038547,1718070642115,-500.0,0.00029041,4]
[329038549,1718070642126,-500.0,0.00029041,4]
[329038551,1718070642136,-508.6371248,0.00029041,4]
[329038553,1718070642147,-509.60769435,0.00029041,4]
[329038555,1718070642160,-500.0,0.00029041,4]
[329038557,1718070642171,-507.24684273,0.00029041,4]
[329038559,1718070642183,-500.0,0.00029041,4]
[329038561,1718070642193,-500.0,0.00029041,4]
[329038563,1718070642204,-500.0,0.00029041,4]
[329038565,1718070642216,-500.0,0.00029041,4]
[329038567,1718070642228,-503.49204807,0.00029041,4]
[329038569,1718070642239,-500.0,0.00029041,4]
[329038571,1718070642250,-500.0,0.00029041,4]
[329038573,1718070642261,-500.0,0.00029041,4]
[329038575,1718070642271,-500.0,0.00029041,4]
[329038577,1718070642282,-500.0,0.00029041,4]
[329038579,1718070642292,-760.5,0.00029041,4]
[329038581,1718070642302,-5.93071593,0.00029041,4]
[329038587,1718070642351,-754.56928407,0.00029041,4]
[329038589,1718070642361,-503.5917661,0.00029041,4]
[329038591,1718070642371,-760.5,0.00029041,4]
[329038593,1718070642381,-520.50608044,0.00029041,4]
[329038595,1718070642392,-760.5,0.00029041,4]
[329038597,1718070642403,-500.0,0.00029041,4]
[329038599,1718070642413,-519.45816155,0.00029041,4]
[329038601,1718070642423,-519.85744307,0.00029041,4]
[329038603,1718070642433,-180.46668477,0.00029041,4]
[329038606,1718070642451,-319.53331523,0.00029041,4]
[329038608,1718070642462,-522.81258645,0.00029041,4]
[329038610,1718070642472,-430.05052688,0.00029041,4]
[329038612,1718070642486,-73.80823105,0.00029041,4]
[329038614,1718070642496,-506.76076678,0.00029041,4]
[329038616,1718070642507,-358.89573676,0.00029041,4]
[329038618,1718070642522,-141.10426324,0.00029041,4]
[329038620,1718070642533,-500.0,0.00029041,4]
[329038622,1718070642543,-42.07093776,0.00029041,4]
[329038625,1718070642557,-480.15417284,0.00029041,4]
[329038627,1718070642567,-131.41333817,0.00029041,4]
[329038629,1718070642581,-393.04327306,0.00029041,4]
[329038631,1718070642592,-500.0,0.00029041,4]
[329038633,1718070642603,-500.0,0.00029041,4]
[329038635,1718070642613,-500.0,0.00029041,4]
[329038637,1718070642624,-506.21235115,0.00029041,4]
[329038639,1718070642636,-500.0,0.00029041,4]
[329038641,1718070642646,-509.1202105,0.00029041,4]
[329038643,1718070642657,-500.0,0.00029041,4]
[329038645,1718070642668,-284.13408595,0.00029041,4]
[329038648,1718070642686,-215.86591405,0.00029041,4]
[329038650,1718070642697,-39.13407595,0.00029041,4]
[329038652,1718070642711,-460.86592405,0.00029041,4]
[329038654,1718070642722,-500.0,0.00029041,4]
[329038656,1718070642733,-500.0,0.00029041,4]
[329038658,1718070642745,-500.0,0.00029041,4]
[329038660,1718070642756,-500.0,0.00029041,4]
[329038662,1718070642773,-500.0,0.00029041,4]
[329038665,1718070642785,-500.0,0.00029041,4]
[329038668,1718070642797,-500.0,0.00029041,4]
[329038672,1718070642809,-500.0,0.00029041,4]
[329038676,1718070642820,-500.0,0.00029041,4]
[329038679,1718070642830,-500.0,0.00029041,4]
[329038682,1718070642841,-500.0,0.00029041,4]
[329038685,1718070642852,-505.621565,0.00029041,4]
[329038688,1718070642863,-525.71838937,0.00029041,4]
[329038690,1718070642875,-1972.48697511,0.00029041,20]
[329038693,1718070642896,-147.1104055,0.00029041,20]
[329038695,1718070642906,-236.973455,0.00029041,4]
[329038699,1718070642920,-263.026545,0.00029041,4]
[329038703,1718070642930,-505.37244729,0.00029041,4]
[329038719,1718070643013,-316.87337578,0.00029041,4]
[329038722,1718070643023,-254.99239954,0.00029041,4]
[329038725,1718070643037,-253.58909418,0.00029041,4]
[329038728,1718070643047,-515.15125714,0.00029041,4]
[329038731,1718070643057,-489.5450401,0.00029041,4]
[329038734,1718070643072,-10.4549599,0.00029041,4]
[329038737,1718070643082,-441.12368324,0.00029041,4]
[329038741,1718070643095,-58.87631676,0.00029041,4]
[329038744,1718070643106,-500.0,0.00029041,4]
[329038747,1718070643116,-530.58565569,0.00029041,4]
[329038750,1718070643126,-504.049099,0.00029041,4]
[329038753,1718070643136,-500.0,0.00029041,4]
[329038756,1718070643147,-500.0,0.00029041,4]
[329038758,1718070643157,-500.0,0.00029041,4]
[329038761,1718070643168,-542.55703649,0.00029041,4]
[329038763,1718070643178,-500.0,0.00029041,4]
[329038766,1718070643188,-500.0,0.00029041,4]
[329038768,1718070643197,-500.0,0.00029041,4]
[329038770,1718070643207,-500.0,0.00029041,4]
[329038772,1718070643216,-528.22553925,0.00029041,4]
[329038775,1718070643225,-500.0,0.00029041,4]
[329038777,1718070643235,-500.0,0.00029041,4]
[329038782,1718070643245,-531.66201841,0.00029041,4]
[329038785,1718070643256,-506.27996572,0.00029041,4]
[329038788,1718070643266,-500.0,0.00029041,4]
[329038791,1718070643277,-527.62322192,0.00029041,4]
[329038793,1718070643287,-207.54189341,0.00029041,4]
[329038795,1718070643298,-511.70754017,0.00029041,4]
[329038797,1718070643308,-500.0,0.00029041,4]
[329038798,1718070643318,-500.0,0.00029041,4]
[329038800,1718070643328,-500.0,0.00029041,4]
[329038802,1718070643339,-554.09829406,0.00029041,4]
[329038803,1718070643349,-521.98470595,0.00029041,4]
[329038805,1718070643359,-525.30931995,0.00029041,4]
[329038806,1718070643371,-511.2377223,0.00029041,4]
[329038808,1718070643381,-506.51516234,0.00029041,4]
[329038810,1718070643391,-520.43600513,0.00029041,4]
[329038811,1718070643403,-500.0,0.00029041,4]
[329038813,1718070643413,-531.92480089,0.00029041,4]
[329038815,1718070643424,-506.92563298,0.00029041,4]
[329038816,1718070643435,-523.83950763,0.00029041,4]
[329038818,1718070643444,-525.5240771,0.00029041,4]
[329038820,1718070643454,-509.48166189,0.00029041,4]
[329038821,1718070643464,-509.83728722,0.00029041,4]
[329038823,1718070643474,-516.40568708,0.00029041,4]
[329038825,1718070643485,-505.26481488,0.00029041,4]
[329038827,1718070643495,-500.0,0.00029041,4]
[329038828,1718070643505,-421.57998325,0.00029041,4]
[329038829,1718070643516,-361.83847162,0.00029041,4]
[329038830,1718070643525,-500.0,0.00029041,4]
[329038831,1718070643535,-518.26616907,0.00029041,4]
[329038833,1718070643545,-503.00565788,0.00029041,4]
[329038835,1718070643555,-503.92569897,0.00029041,4]
[329038837,1718070643565,-506.92843644,0.00029041,4]
[329038839,1718070643575,-504.2710243,0.00029041,4]
[329038841,1718070643585,-505.18896909,0.00029041,4]
[329038843,1718070643594,-503.82644069,0.00029041,4]
[329038845,1718070643604,-514.42753552,0.00029041,4]
[329038847,1718070643614,-525.8678788,0.00029041,4]
[329038849,1718070643623,-500.0,0.00029041,4]
[329038851,1718070643634,-546.55035006,0.00029041,4]
[329038854,1718070643644,-503.2110579,0.00029041,4]
[329038857,1718070643655,-541.88319141,0.00029041,4]
[329038859,1718070643665,-511.66103165,0.00029041,4]
[329038862,1718070643675,-516.22702373,0.00029041,4]
[329038865,1718070643685,-509.7026494,0.00029041,4]
[329038868,1718070643696,-500.0,0.00029041,4]
[329038871,1718070643706,-500.0,0.00029041,4]
[329038873,1718070643718,-551.82355563,0.00029041,4]
[329038876,1718070643728,-500.0,0.00029041,4]
[329038879,1718070643738,-500.0,0.00029041,4]
[329038882,1718070643749,-500.0,0.00029041,4]
[329038885,1718070643760,-500.0,0.00029041,4]
[329038888,1718070643772,-500.0,0.00029041,4]
[329038891,1718070643783,-500.0,0.00029041,4]
[329038895,1718070643793,-500.0,0.00029041,4]
[329038896,1718070643804,-500.0,0.00029041,4]
[329038899,1718070643814,-500.0,0.00029041,4]
[329038902,1718070643824,-522.66538755,0.00029041,4]
[329038905,1718070643835,-211.48985823,0.00029041,4]
[329038908,1718070643846,-500.0,0.00029041,4]
[329038911,1718070643856,-500.0,0.00029041,4]
[329038914,1718070643866,-500.0,0.00029041,4]
[329038917,1718070643877,-500.0,0.00029041,4]
[329038920,1718070643887,-500.0,0.00029041,4]
[329038923,1718070643898,-500.0,0.00029041,4]
[329038926,1718070643909,-151.86704511,0.00029041,4]
[329038929,1718070643919,-500.0,0.00029041,4]
[329038932,1718070643930,-500.0,0.00029041,4]
[329038935,1718070643941,-519.06254675,0.00029041,4]
[329038938,1718070643951,-500.0,0.00029041,4]
[329038941,1718070643963,-509.30341625,0.00029041,4]
[329038944,1718070643974,-500.0,0.00029041,4]
[329038947,1718070643985,-515.27914568,0.00029041,4]
[329038949,1718070643995,-500.0,0.00029041,4]
[329038951,1718070644005,-516.35928144,0.00029041,4]
[329038953,1718070644016,-500.0,0.00029041,4]
[329038955,1718070644026,-515.28599532,0.00029041,4]
[329038957,1718070644036,-492.11665571,0.00029041,4]
[329038959,1718070644047,-500.0,0.00029041,4]
[329038962,1718070644058,-507.93699509,0.00029041,4]
[329038966,1718070644069,-500.0,0.00029041,4]
[329038970,1718070644080,-500.0,0.00029041,4]
[329038974,1718070644091,-417.66062242,0.00029041,4]
[329038977,1718070644102,-517.35038131,0.00029041,4]
[329038980,1718070644112,-521.35265764,0.00029041,4]
[329038983,1718070644122,-500.0,0.00029041,4]
[329038985,1718070644133,-512.62503636,0.00029041,4]
[329038987,1718070644146,-500.0,0.00029041,4]
[329038990,1718070644157,-527.05845809,0.00029041,4]
[329038993,1718070644167,-528.60946195,0.00029041,4]
[329038996,1718070644177,-500.0,0.00029041,4]
[329038998,1718070644187,-512.47069402,0.00029041,4]
[329039000,1718070644197,-512.76750466,0.00029041,4]
[329039002,1718070644207,-504.66361495,0.00029041,4]
[329039004,1718070644217,-500.0,0.00029041,4]
[329039006,1718070644227,-512.10396427,0.00029041,4]
[329039007,1718070644241,-518.07024437,0.00029041,4]
[329039009,1718070644251,-310.81844862,0.00029041,4]
[329039011,1718070644261,-152.01707022,0.00029041,4]
[329039013,1718070644272,-500.0,0.00029041,4]
[329039016,1718070644284,-500.0,0.00029041,4]
[329039017,1718070644294,-500.0,0.00029041,4]
[329039019,1718070644305,-506.56707049,0.00029041,4]
[329039021,1718070644315,-500.0,0.00029041,4]
[329039023,1718070644325,-500.0,0.00029041,4]
[329039025,1718070644335,-500.0,0.00029041,4]
[329039027,1718070644345,-500.0,0.00029041,4]
[329039029,1718070644357,-540.69310636,0.00029041,4]
[329039031,1718070644367,-500.0,0.00029041,4]
[329039033,1718070644377,-500.0,0.00029041,4]
[329039035,1718070644387,-500.0,0.00029041,4]
[329039037,1718070644397,-151.6077301,0.00029041,4]
[329039039,1718070644407,-500.0,0.00029041,4]
[329039041,1718070644416,-514.06404448,0.00029041,4]
[329039043,1718070644426,-1000.0,0.00029041,2]
[329039044,1718070644436,-313.76864879,0.00029041,4]
[329039046,1718070644446,-1000.0,0.00029041,2]
[329039048,1718070644456,-291.25143985,0.00029041,4]
[329039050,1718070644466,-1000.0,0.00029041,2]
[329039052,1718070644476,-1000.0,0.00029041,2]
[329039054,1718070644487,-1000.0,0.00029041,2]
[329039056,1718070644497,-1000.0,0.00029041,2]
[329039058,1718070644507,-500.0,0.00029041,4]
[329039060,1718070644519,-500.0,0.00029041,4]
[329039062,1718070644530,-513.80450972,0.00029041,4]
[329039064,1718070644540,-500.0,0.00029041,4]
[329039066,1718070644552,-774.71130124,0.00029041,2]
[329039076,1718070644644,-225.28869876,0.00029041,2]
[329039078,1718070644654,-484.04490237,0.00029041,4]
[329039080,1718070644666,-18.49154451,0.00029041,4]
[329039082,1718070644676,-1000.0,0.00029041,2]
[329039084,1718070644687,-1000.0,0.00029041,2]
[329039086,1718070644698,-1000.0,0.00029041,2]
[329039088,1718070644708,-121.61111413,0.00029041,2]
[329039097,1718070644799,-332.61960287,0.00029041,2]
[329039100,1718070644812,-302.52178472,0.00029041,2]
[329039102,1718070644823,-243.24749828,0.00029041,2]
[329039104,1718070644834,-912.92465789,0.00029041,2]
[329039122,1718070645322,-208.99062426,0.0002904,2]
[329039123,1718070645332,-156.12926756,0.0002904,2]
[329039124,1718070645342,-162.27567041,0.0002904,2]
[329039125,1718070645537,-294.50130228,0.00028891,2]
[329039126,1718070645547,-905.79256259,0.0002904,2]
[329039127,1718070645560,-1292.76814614,0.0002904,2]
[329039132,1718070645604,-1000.0,0.00017259,2]
[329039134,1718070645615,-3352.94611928,0.0002904,2]
[329039135,1718070645627,-182.75863533,0.0002904,2]
[329039136,1718070645637,-197.0,0.00029041,5]
[329039137,1718070645648,-87.07534211,0.00029041,2]
[329039138,1718070645658,-946.9079958,0.00029041,2]
[329039139,1718070645671,-53.0920042,0.00029041,2]
[329039140,1718070645681,-500.0,0.00029041,4]
[329039141,1718070645693,-500.0,0.00029041,4]
[329039142,1718070645704,-500.0,0.00029041,4]
[329039143,1718070645715,-1000.0,0.00029041,2]
[329039144,1718070645725,-500.0,0.00029041,4]
[329039145,1718070645736,-500.0,0.00029041,4]
[329039146,1718070645747,-1000.0,0.00029041,2]
[329039147,1718070645757,-155.91420654,0.00029041,4]
[329039148,1718070645771,-1000.0,0.00029041,2]
[329039149,1718070645781,-1000.0,0.00029041,2]
[329039150,1718070645791,-500.0,0.00029041,4]
[329039151,1718070645801,-507.43322235,0.00029041,4]
[329039152,1718070645811,-1000.0,0.00029041,2]
[329039153,1718070645821,-1000.0,0.00029041,2]
[329039154,1718070645832,-949.9701856,0.00029041,2]
[329039155,1718070645852,-50.0298144,0.00029041,2]
[329039156,1718070645861,-1000.0,0.00029041,2]
[329039157,1718070645871,-264.99742123,0.00029041,2]
[329039158,1718070645884,-735.00257877,0.00029041,2]
[329039159,1718070645894,-1000.0,0.00029041,2]
[329039160,1718070645905,-729.99742123,0.00029041,2]
[329039161,1718070645919,-270.00257877,0.00029041,2]
[329039162,1718070645929,-269.50157283,0.00029041,4]
[329039163,1718070645942,-245.56987429,0.00029041,4]
[329039164,1718070645952,-1000.0,0.00029041,2]
[329039165,1718070645963,-1000.0,0.00029041,2]
[329039166,1718070645973,-754.63484635,0.00029041,2]
[329039167,1718070645999,-245.36515365,0.00029041,2]
[329039168,1718070646009,-1000.0,0.00029041,2]
[329039169,1718070646019,-528.81816102,0.00029041,4]
[329039170,1718070646028,-508.59219733,0.00029041,2]
[329039171,1718070646042,-491.40780267,0.00029041,2]
[329039172,1718070646052,-1000.0,0.00029041,2]
[329039173,1718070646062,-500.0,0.00029041,4]
[329039174,1718070646072,-500.0,0.00029041,4]
[329039175,1718070646082,-1000.0,0.00029041,2]
[329039176,1718070646092,-66.52276988,0.00029041,4]
[329039177,1718070646108,-437.18,0.00029041,4]
[329039178,1718070646121,-8.31498815,0.00029041,4]
[329039179,1718070646132,-500.0,0.00029041,4]
[329039181,1718070646151,-500.0,0.00029041,4]
[329039183,1718070646161,-1000.0,0.00029041,2]
[329039186,1718070646172,-500.0,0.00029041,4]
[329039189,1718070646182,-500.0,0.00029041,4]
[329039191,1718070646194,-1000.0,0.00029041,2]
[329039194,1718070646204,-500.0,0.00029041,4]
[329039197,1718070646214,-382.64845708,0.00029041,4]
[329039199,1718070646224,-1000.0,0.00029041,2]
[329039200,1718070646235,-102.09978278,0.00029041,2]
[329039201,1718070646253,-897.90021722,0.00029041,2]
[329039202,1718070646263,-378.59929298,0.00029041,2]
[329039203,1718070646276,-621.40070702,0.00029041,2]
[329039204,1718070646286,-500.0,0.00029041,4]
[329039205,1718070646297,-1000.0,0.00029041,2]
[329039206,1718070646307,-500.0,0.00029041,4]
[329039207,1718070646318,-500.0,0.00029041,4]
[329039208,1718070646328,-500.0,0.00029041,4]
[329039209,1718070646339,-1000.0,0.00029041,2]
[329039210,1718070646349,-260.84966863,0.00029041,4]
[329039211,1718070646361,-500.0,0.00029041,4]
[329039212,1718070646372,-500.0,0.00029041,4]
[329039213,1718070646383,-500.0,0.00029041,4]
[329039214,1718070646396,-1000.0,0.00029041,2]
[329039215,1718070646407,-500.0,0.00029041,4]
[329039216,1718070646420,-500.0,0.00029041,4]
[329039217,1718070646431,-500.0,0.00029041,4]
[329039218,1718070646443,-500.0,0.00029041,4]
[329039219,1718070646454,-1000.0,0.00029041,2]
[329039220,1718070646464,-500.0,0.00029041,4]
[329039221,1718070646474,-500.0,0.00029041,4]
[329039222,1718070646484,-500.0,0.00029041,4]
[329039223,1718070646495,-500.0,0.00029041,4]
[329039224,1718070646505,-500.0,0.00029041,4]
[329039225,1718070646514,-513.89073273,0.00029041,4]
[329039226,1718070646526,-314.24543644,0.00029041,2]
[329039227,1718070646536,-568.14156994,0.00029041,4]
[329039228,1718070646546,-199.9504386,0.00029041,4]
[329039229,1718070646557,-500.0,0.00029041,4]
[329039231,1718070646567,-500.0,0.00029041,4]
[329039232,1718070646577,-500.0,0.00029041,4]
[329039233,1718070646587,-500.0,0.00029041,4]
[329039234,1718070646596,-499.94048183,0.00029041,4]
[329039235,1718070646606,-500.0,0.00029041,4]
[329039236,1718070646616,-500.0,0.00029041,4]
[329039237,1718070646625,-500.0,0.00029041,4]
[329039238,1718070646635,-500.0,0.00029041,4]
[329039239,1718070646644,-500.0,0.00029041,4]
[329039240,1718070646654,-513.86686945,0.00029041,4]
[329039241,1718070646663,-500.0,0.00029041,4]
[329039242,1718070646673,-500.0,0.00029041,4]
[329039243,1718070646683,-198.67856663,0.00029041,4]
[329039244,1718070646693,-500.0,0.00029041,4]
[329039245,1718070646703,-500.0,0.00029041,4]
[329039246,1718070646713,-538.37188836,0.00029041,4]
[329039247,1718070646723,-500.0,0.00029041,4]
[329039248,1718070646733,-500.0,0.00029041,4]
[329039249,1718070646743,-500.0,0.00029041,4]
[329039250,1718070646753,-500.0,0.00029041,4]
[329039251,1718070646763,-500.0,0.00029041,4]
[329039252,1718070646774,-500.0,0.00029041,4]
[329039253,1718070646784,-500.0,0.00029041,4]
[329039254,1718070646793,-500.0,0.00029041,4]
[329039255,1718070646802,-133.21742792,0.00029041,4]
[329039256,1718070646840,-366.78257208,0.00029041,4]
[329039257,1718070646850,-500.0,0.00029041,4]
[329039258,1718070646859,-108.71742794,0.00029041,4]
[329039259,1718070646871,-140.2003225,0.00029041,4]
[329039260,1718070646881,-500.0,0.00029041,4]
[329039261,1718070646890,-500.0,0.00029041,4]
[329039262,1718070646899,-66.65192813,0.00029041,4]
[329039263,1718070646912,-358.58285681,0.00029041,4]
[329039264,1718070646922,-558.6558869,0.00029041,4]
[329039265,1718070646931,-500.0,0.00029041,4]
[329039266,1718070646940,-591.73011953,0.00029041,4]
[329039267,1718070646950,-500.0,0.00029041,4]
[329039268,1718070646960,-500.0,0.00029041,4]
[329039269,1718070646969,-491.03113676,0.00029041,4]
[329039270,1718070646984,-8.96886324,0.00029041,4]
[329039271,1718070646994,-500.0,0.00029041,4]
[329039272,1718070647003,-500.0,0.00029041,4]
[329039273,1718070647012,-500.0,0.00029041,4]
[329039275,1718070647022,-500.0,0.00029041,4]
[329039277,1718070647031,-500.0,0.00029041,4]
[329039278,1718070647040,-323.60735854,0.00029041,4]
[329039279,1718070647049,-500.0,0.00029041,4]
[329039280,1718070647058,-500.0,0.00029041,4]
[329039281,1718070647068,-500.0,0.00029041,4]
[329039282,1718070647078,-500.0,0.00029041,4]
[329039283,1718070647087,-184.10700355,0.00029041,4]
[329039284,1718070647097,-500.0,0.00029041,4]
[329039285,1718070647107,-500.0,0.00029041,4]
[329039286,1718070647116,-500.0,0.00029041,4]
[329039287,1718070647125,-502.7472333,0.00029041,4]
[329039288,1718070647135,-500.0,0.00029041,4]
[329039289,1718070647145,-500.0,0.00029041,4]
[329039290,1718070647155,-500.0,0.00029041,4]
[329039291,1718070647169,-500.0,0.00029041,4]
[329039292,1718070647179,-500.0,0.00029041,4]
[329039293,1718070647189,-500.0,0.00029041,4]
[329039294,1718070647198,-500.0,0.00029041,4]
[329039295,1718070647209,-430.24144427,0.00029041,4]
[329039296,1718070647219,-500.0,0.00029041,4]
[329039297,1718070647229,-500.0,0.00029041,4]
[329039298,1718070647239,-500.0,0.00029041,4]
[329039299,1718070647249,-500.0,0.00029041,4]
[329039300,1718070647259,-500.0,0.00029041,4]
[329039301,1718070647269,-558.94339418,0.00029041,4]
[329039302,1718070647278,-585.59663279,0.00029041,4]
[329039303,1718070647287,-500.0,0.00029041,4]
[329039304,1718070647297,-517.63959667,0.00029041,4]
[329039305,1718070647306,-500.0,0.00029041,4]
[329039306,1718070647317,-500.0,0.00029041,4]
[329039307,1718070647326,-500.0,0.00029041,4]
[329039308,1718070647336,-323.31878029,0.00029041,4]
[329039309,1718070647367,-176.68121971,0.00029041,4]
[329039310,1718070647377,-502.94793561,0.00029041,4]
[329039311,1718070647388,-500.0,0.00029041,4]
[329039312,1718070647398,-500.0,0.00029041,4]
[329039313,1718070647407,-500.0,0.00029041,4]
[329039314,1718070647418,-500.0,0.00029041,4]
[329039315,1718070647427,-500.0,0.00029041,4]
[329039316,1718070647437,-500.0,0.00029041,4]
[329039317,1718070647447,-518.82320864,0.00029041,4]
[329039318,1718070647457,-500.0,0.00029041,4]
[329039319,1718070647468,-500.0,0.00029041,4]
[329039320,1718070647478,-500.0,0.00029041,4]
[329039321,1718070647488,-500.0,0.00029041,4]
[329039322,1718070647499,-500.0,0.00029041,4]
[329039323,1718070647509,-182.75583163,0.00029041,4]
[329039324,1718070647520,-500.0,0.00029041,4]
[329039325,1718070647531,-367.49129324,0.00029041,4]
[329039326,1718070647552,-132.50870676,0.00029041,4]
[329039327,1718070647563,-500.0,0.00029041,4]
[329039328,1718070647573,-500.0,0.00029041,4]
[329039329,1718070647585,-500.0,0.00029041,4]
[329039330,1718070647596,-500.0,0.00029041,4]
[329039331,1718070647607,-614.28803119,0.00029041,4]
[329039332,1718070647618,-344.68044035,0.00029041,4]
[329039333,1718070647634,-155.31955965,0.00029041,4]
[329039334,1718070647645,-500.0,0.00029041,4]
[329039335,1718070647655,-521.47618182,0.00029041,4]
[329039336,1718070647666,-500.0,0.00029041,4]
[329039337,1718070647679,-500.0,0.00029041,4]
[329039338,1718070647699,-500.0,0.00029041,4]
[329039339,1718070647712,-500.0,0.00029041,4]
[329039340,1718070647724,-277.58504201,0.00029041,4]
[329039341,1718070647740,-222.41495799,0.00029041,4]
[329039342,1718070647750,-500.0,0.00029041,4]
[329039343,1718070647765,-392.80078947,0.00029041,4]